bitfinex-derivatives/quotes_ETHF0:USTF0_20250824
["timestamp","ask_amount","ask_price","bid_price","bid_amount"]
[1756067316341,4.0096,4791.9,4790.8,1.1295]
[1756067316653,4.0096,4791.9,4790.2,1.7341]
[1756067316848,4.0096,4791.9,4790.6,3.2078]
[1756067317040,4.0096,4791.9,4790.7,2.8636]
[1756067317452,2.9106,4791.9,4790.7,2.8636]
[1756067318053,1.0329,4791.9,4790.7,2.8636]
[1756067318353,30.07,4792.3,4791.3,2.8636]
[1756067319043,30.07,4792.3,4791.4,0.26701042]
[1756067319245,30.07,4792.3,4791.5,0.26701042]
[1756067319446,30.07,4792.3,4791.3,2.8636]
[1756067319742,30.07,4792.3,4791.4,0.26700586]
[1756067320049,30.07,4792.3,4787.3,24.822]
[1756067320050,1.0329,4792.7,4792.1,2.8636]
[1756067320247,1.099,4793.2,4792.2,0.26700586]
[1756067320456,1.099,4793.2,4792.3,0.26700586]
[1756067320752,1.099,4793.2,4792.4,0.26700586]
[1756067320952,1.099,4793.2,4792.5,0.26700586]
[1756067321248,1.099,4793.2,4792.6,0.26700586]
[1756067321249,2.9767,4793.2,4792.6,0.26700586]
[1756067321450,2.1319,4793.6,4792.7,0.26700586]
[1756067321748,3.2078,4793.3,4792.8,0.26700586]
[1756067321957,2.9106,4793.1,4792.9,0.26700586]
[1756067322150,2.9767,4792.8,4792.0,3.2078]
[1756067322350,1.49247904,4792.7,4792.1,0.26901214]
[1756067322556,4.0096,4792.8,4792.2,0.26901214]
[1756067322849,4.0096,4792.6,4792.3,0.26901214]
[1756067323055,3.2078,4793.3,4792.0,3.2078]
[1756067323056,1.0329,4793.3,4792.4,3.13261214]
[1756067323349,1.0329,4793.3,4792.5,0.26901214]
[1756067323350,0.45915029,4793.2,4792.5,0.26901214]
[1756067323556,0.45915029,4793.1,4792.6,0.26901214]
[1756067323747,1.49205029,4793.0,4792.7,0.26901214]
[1756067323951,0.45915029,4792.9,4792.8,0.26901214]
[1756067324849,1.49205029,4792.9,4792.8,0.26618032]
[1756067325055,0.45915029,4792.9,4792.8,0.26618032]
[1756067325450,0.45915029,4793.5,4792.8,0.26618032]
[1756067325752,0.45915029,4793.5,4792.9,0.26618032]
[1756067325951,4.0096,4793.4,4793.0,0.26618032]
[1756067326253,0.45915029,4793.3,4792.5,3.2078]
[1756067326447,4.46875029,4793.2,4792.5,3.2078]
[1756067326645,0.45915029,4793.1,4792.5,3.2078]
[1756067327060,1.099,4792.8,4791.3,3.2078]
[1756067327255,2.1319,4792.4,4791.6,0.41748]
[1756067327456,0.45915029,4792.3,4791.4,0.41749]
[1756067327651,0.45915029,4792.3,4791.3,3.2078]
[1756067327860,4.0096,4792.2,4791.3,3.6253]
[1756067328062,0.45915029,4792.1,4791.3,3.6253]
[1756067328262,0.45915029,4792.1,4791.3,3.2078]
[1756067328659,1.0329,4792.0,4791.3,3.2078]
[1756067328868,0.45915029,4792.1,4790.7,0.41755]
[1756067328869,1.0329,4791.7,4790.7,3.2078]
[1756067329057,0.45915029,4791.6,4790.7,3.2078]
[1756067329555,1.0329,4791.4,4790.7,3.2078]
[1756067329753,0.45915029,4791.3,4790.7,3.2078]
[1756067329958,2.9767,4791.5,4790.8,0.41755]
[1756067330156,1.0329,4792.0,4791.2,3.2078]
[1756067330359,0.46096058,4791.9,4791.3,2.8636]
[1756067330556,0.46096058,4791.8,4791.4,2.8636]
[1756067330759,1.0329,4792.0,4791.4,2.8636]
[1756067330960,0.460938,4791.9,4791.2,3.62531]
[1756067331263,0.460938,4791.8,4791.6,2.8636]
[1756067331559,1.0329,4792.0,4791.6,2.8636]
[1756067331762,0.46067162,4791.9,4791.6,2.8636]
[1756067331957,1.0329,4792.0,4791.6,3.8382]
[1756067332157,2.9767,4792.3,4791.7,2.8636]
[1756067332858,27.9228,4792.4,4791.7,2.8636]
[1756067333058,3.2078,4792.4,4791.7,2.8636]
[1756067333362,1.8777,4792.5,4791.7,2.8636]
[1756067334157,1.55909335,4792.4,4791.7,2.8636]
[1756067334361,31.0949,4792.6,4790.7,6.0714]
[1756067334362,4.0096,4791.8,4790.7,6.0714]
[1756067334565,0.46009335,4791.7,4790.7,6.0714]
[1756067334862,24.701,4791.6,4790.7,6.0714]
[1756067335758,1.8777,4791.8,4790.8,0.9746]
[1756067335959,24.699,4792.3,4791.0,3.12623]
[1756067336160,0.46056583,4792.2,4791.0,3.12623]
[1756067336356,0.46056583,4792.1,4791.0,2.7087]
[1756067336558,30.062,4792.6,4791.6,3.8382]
[1756067336864,30.062,4792.6,4791.9,0.9746]
[1756067337258,30.062,4792.6,4790.6,3.2078]
[1756067337259,1.0329,4792.3,4790.6,3.2078]
[1756067337462,1.8777,4792.4,4791.1,3.2078]
[1756067337463,1.0329,4791.8,4791.1,3.2078]
[1756067337763,1.0212,4791.6,4790.6,2.1028]
[1756067338063,2.21321325,4791.5,4790.6,2.1028]
[1756067338262,3.9436,4791.3,4790.6,2.1028]
[1756067338466,3.9436,4791.3,4791.1,3.2078]
[1756067338669,3.9436,4791.3,4790.6,2.1028]
[1756067339459,3.9436,4791.9,4790.6,2.1028]
[1756067339764,0.4608824,4791.8,4791.3,1.8812]
[1756067339968,1.83390613,4796.1,4791.3,1.8812]
[1756067339969,0.4608824,4791.7,4791.3,3.984]
[1756067340163,0.4608824,4791.6,4791.3,3.2078]
[1756067340471,0.4608824,4791.5,4791.3,3.2078]
[1756067340773,1.17,4792.1,4791.4,3.984]
[1756067340963,0.46085475,4792.0,4791.4,3.984]
[1756067341164,0.46085475,4791.9,4790.9,3.984]
[1756067341465,0.46085475,4791.8,4791.5,3.2078]
[1756067341666,0.46085475,4791.7,4791.5,3.984]
[1756067341861,0.46085475,4791.6,4791.5,3.984]
[1756067342066,0.46085475,4791.6,4791.5,2.1028]
[1756067342267,1.48243338,4792.0,4791.6,1.8812]
[1756067342474,0.46160635,4791.9,4791.7,3.0168]
[1756067342660,1.0212,4792.0,4791.7,1.1356]
[1756067342866,0.46160556,4791.9,4791.8,3.0168]
[1756067343062,1.0212,4792.3,4791.2,7.1918]
[1756067343266,0.46156438,4792.2,4791.2,7.1918]
[1756067343472,0.46156438,4792.1,4791.2,7.1918]
[1756067343674,0.46156438,4792.0,4791.2,7.1918]
[1756067343873,0.46156438,4791.9,4791.2,7.1918]
[1756067344073,0.46156438,4791.8,4791.2,7.1918]
[1756067344274,1.0212,4792.3,4791.2,3.2078]
[1756067344474,0.46164627,4792.2,4791.3,3.984]
[1756067344666,0.46164627,4792.1,4791.3,3.984]
[1756067344871,0.46164627,4792.0,4791.3,3.984]
[1756067345075,0.46164627,4791.9,4791.3,3.984]
[1756067345269,2.7736,4791.8,4791.3,3.984]
[1756067345474,24.651,4792.4,4790.7,3.2078]
[1756067345475,1.0212,4791.4,4790.7,3.2078]
[1756067345679,1.0212,4791.4,4788.9,1.48203409]
[1756067345680,1.17,4790.9,4790.2,3.2078]
[1756067345980,1.17,4790.9,4789.4,1.1356]
[1756067345981,1.7524,4790.3,4788.9,3.2078]
[1756067346178,2.9224,4789.9,4788.9,3.2078]
[1756067346476,1.0212,4789.7,4788.9,3.2078]
[1756067346872,24.628,4789.6,4788.9,3.2078]
[1756067347269,2.9224,4789.9,4789.4,3.2078]
[1756067347478,1.0212,4790.5,4789.5,0.9672]
[1756067347680,3.2078,4790.9,4790.3,4.175]
[1756067347874,31.0852,4790.8,4790.3,4.175]
[1756067348182,54.681,4790.8,4790.6,0.9672]
[1756067348481,2.7736,4790.7,4790.3,7.1918]
[1756067348686,24.613,4791.3,4790.6,0.41756]
[1756067348879,2.1912,4791.9,4791.3,3.984]
[1756067349177,2.1912,4791.9,4790.7,0.41755]
[1756067349178,24.612,4791.8,4791.4,3.984]
[1756067349570,24.609,4791.9,4791.1,3.2078]
[1756067349770,24.606,4792.1,4791.7,3.2078]
[1756067349972,25.776,4792.1,4791.8,1.8812]
[1756067350170,1.0212,4792.0,4791.7,3.2078]
[1756067350375,2.9224,4792.0,4791.7,3.2078]
[1756067350570,3.9436,4792.0,4791.7,3.2078]
[1756067351877,24.606,4792.1,4791.7,3.2078]
[1756067352078,3.9436,4791.8,4791.7,3.2078]
[1756067352479,1.0212,4791.8,4791.7,3.2078]
[1756067352679,24.606,4792.1,4791.7,4.175]
[1756067352875,24.606,4792.1,4791.8,1.8812]
[1756067353072,25.6272,4792.1,4791.8,1.8812]
[1756067353276,28.5496,4792.1,4791.8,1.8812]
[1756067353682,1.0212,4792.0,4791.7,3.2078]
[1756067353882,1.7524,4791.8,4791.7,3.2078]
[1756067354082,2.1912,4791.9,4791.7,3.2078]
[1756067354382,1.0212,4791.9,4791.7,3.2078]
[1756067355979,1.0212,4791.9,4791.7,6.2246]
[1756067356185,2.7736,4792.0,4791.8,0.9672]
[1756067356380,1.17,4791.8,4791.7,3.2078]
[1756067356585,2.7736,4791.5,4790.9,3.2078]
[1756067356880,1.0212,4791.7,4791.0,3.2078]
[1756067357082,2.9224,4791.5,4790.7,3.2078]
[1756067357281,3.9436,4791.3,4790.5,1.8812]
[1756067357883,24.551,4791.2,4790.5,1.8812]
[1756067358081,3.9436,4791.3,4790.7,3.2078]
[1756067358880,24.551,4791.9,4790.0,3.2078]
[1756067358881,3.2078,4791.6,4790.0,3.2078]
[1756067359181,2.1912,4790.4,4789.4,4.175]
[1756067359484,2.1912,4790.4,4789.5,3.0168]
[1756067359677,24.539,4790.7,4790.1,2.8484]
[1756067359882,24.539,4790.7,4790.6,3.984]
[1756067360489,28.4826,4790.7,4790.0,3.2078]
[1756067360683,24.539,4790.7,4790.1,2.1028]
[1756067360886,24.539,4790.7,4790.1,3.984]
[1756067362379,1.0212,4791.3,4790.6,3.2078]
[1756067362578,27.7368,4791.6,4790.7,3.984]
[1756067362782,27.7368,4791.6,4790.0,0.41761]
[1756067362783,27.7368,4791.6,4790.0,3.2078]
[1756067362986,3.9436,4791.5,4790.0,7.1918]
[1756067363193,2.9224,4791.0,4790.0,6.2246]
[1756067363395,2.9224,4790.9,4790.0,3.2078]
[1756067363687,2.7736,4790.6,4790.0,3.2078]
[1756067363884,26.7002,4790.5,4790.0,3.2078]
[1756067364084,3.9436,4790.4,4790.0,3.2078]
[1756067364284,3.9436,4790.2,4790.0,3.2078]
[1756067364584,3.9436,4790.1,4790.0,3.2078]
[1756067364787,1.17,4790.2,4790.0,3.2078]
[1756067365189,3.9436,4790.5,4790.3,0.00446466]
[1756067365391,3.9436,4790.5,4790.3,1.88566466]
[1756067365884,1.0212,4790.4,4790.3,0.00446466]
[1756067366089,2.7736,4790.4,4790.3,0.00446466]
[1756067366586,4.229,4791.1,4790.3,3.02126466]
[1756067366785,24.499,4791.0,4790.3,3.02126466]
[1756067367385,1.0212,4790.9,4790.7,3.984]
[1756067367685,0.9808,4791.1,4790.8,3.0168]
[1756067367992,0.9808,4791.6,4790.9,3.9667]
[1756067368189,25.4598,4791.6,4790.9,3.9667]
[1756067371693,2.8172,4792.3,4791.5,3.2078]
[1756067371887,2.8172,4792.3,4791.6,3.9667]
[1756067372388,2.8172,4792.3,4792.0,3.2078]
[1756067372590,24.449,4792.5,4792.0,3.2078]
[1756067372591,3.798,4792.2,4792.0,3.2078]
[1756067372987,2.8172,4792.2,4791.9,3.2078]
[1756067373188,0.9808,4792.1,4791.9,3.2078]
[1756067373684,3.2078,4792.7,4792.1,0.41743]
[1756067373685,0.9808,4792.7,4792.1,0.41743]
[1756067373891,0.9808,4792.6,4792.3,1.123]
[1756067374095,0.9808,4792.6,4792.1,0.41743]
[1756067374096,0.9808,4792.6,4792.4,7.1745]
[1756067375000,0.9808,4792.6,4792.4,5.3629]
[1756067375294,0.9808,4792.6,4792.4,7.1745]
[1756067375495,1.7116,4792.5,4792.4,5.3629]
[1756067375690,1.7116,4792.5,4791.9,0.41745]
[1756067375691,3.798,4792.5,4791.9,3.2078]
[1756067375889,24.447,4793.0,4791.9,3.2078]
[1756067376191,3.798,4792.0,4791.9,3.2078]
[1756067376503,0.9808,4792.0,4791.9,6.1424]
[1756067376794,3.798,4792.0,4791.9,3.2078]
[1756067377792,0.9808,4792.7,4792.0,4.38414]
[1756067378001,0.9808,4792.7,4792.5,3.9667]
[1756067378389,27.2292,4793.0,4792.4,3.2078]
[1756067378390,27.2292,4793.0,4792.8,2.9346]
[1756067378691,2.8172,4794.3,4793.8,2.9346]
[1756067378897,2.8172,4794.3,4793.7,0.41729]
[1756067379191,2.8172,4794.9,4794.2,3.9667]
[1756067379384,24.388,4795.5,4794.1,3.2078]
[1756067379385,1.1056,4794.6,4794.1,3.2078]
[1756067379591,1.7116,4794.7,4793.4,3.2078]
[1756067379592,2.6924,4794.3,4793.4,3.2078]
[1756067379786,24.385,4794.5,4793.4,3.2078]
[1756067379991,3.798,4794.0,4793.4,3.2078]
[1756067380196,3.798,4794.0,4793.6,3.9667]
[1756067380398,3.798,4793.7,4793.4,3.2078]
[1756067380598,0.9808,4793.7,4793.5,3.9667]
[1756067380898,0.9808,4793.7,4793.6,2.9346]
[1756067381298,3.798,4793.5,4793.4,3.2078]
[1756067381590,2.8172,4795.2,4793.8,1.8116]
[1756067381793,1.1056,4795.2,4794.7,2.9346]
[1756067381992,2.8172,4795.7,4794.9,3.9667]
[1756067382393,2.8172,4795.7,4795.1,3.2078]
[1756067382592,25.3438,4795.8,4794.9,3.9667]
[1756067382593,24.363,4795.8,4795.6,7.1745]
[1756067382788,24.363,4795.8,4795.6,3.9667]
[1756067383496,2.8172,4796.3,4795.6,3.9667]
[1756067383696,27.5638,4796.3,4794.8,1.8116]
[1756067383993,27.5638,4796.3,4794.8,3.2078]
[1756067384195,3.798,4796.0,4795.4,3.2078]
[1756067384594,0.9808,4796.5,4795.5,4.38383]
[1756067384792,0.9808,4796.5,4795.9,3.2078]
[1756067384987,0.9808,4796.5,4796.2,3.9667]
[1756067385800,3.798,4796.8,4796.2,3.9667]
[1756067386094,2.8172,4796.6,4795.3,6.1424]
[1756067386294,3.2078,4796.6,4795.3,6.1424]
[1756067386497,3.798,4796.5,4795.3,6.1424]
[1756067386701,3.2078,4796.6,4795.3,6.1424]
[1756067386995,3.798,4796.3,4795.3,6.1424]
[1756067387195,0.9808,4796.2,4795.3,6.1424]
[1756067387404,24.318,4796.1,4795.3,6.1424]
[1756067387898,3.798,4796.0,4795.3,6.1424]
[1756067388610,3.798,4796.0,4795.3,3.2078]
[1756067389297,0.9808,4795.9,4794.8,2.9346]
[1756067389504,2.8172,4796.0,4794.8,2.9346]
[1756067389698,3.2078,4795.8,4794.8,2.9346]
[1756067389893,2.8172,4795.7,4794.8,2.9346]
[1756067390096,0.9808,4795.6,4794.8,2.9346]
[1756067390503,0.9808,4795.4,4794.7,3.2078]
[1756067391098,3.798,4795.2,4794.3,1.0321]
[1756067391298,24.279,4795.1,4794.3,1.0321]
[1756067391894,2.8172,4794.9,4794.2,6.1424]
[1756067392300,0.9808,4794.8,4794.2,6.1424]
[1756067393802,3.2078,4795.0,4794.2,3.2078]
[1756067394104,3.798,4794.9,4794.2,3.2078]
[1756067396097,3.798,4794.9,4794.1,5.0194]
[1756067396996,3.798,4795.9,4794.9,1.123]
[1756067397193,24.224,4795.8,4794.9,3.9667]
[1756067397694,1.0602,4796.7,4795.4,3.2078]
[1756067397901,1.004,4796.5,4795.6,1.8197]
[1756067398303,25.9342,4796.6,4795.6,1.8197]
[1756067398304,1.004,4796.2,4795.6,1.8197]
[1756067398499,1.7122,4796.3,4795.6,1.8197]
[1756067398700,24.222,4796.6,4795.8,2.8833]
[1756067398898,1.004,4797.4,4796.7,1.013]
[1756067399101,3.2078,4798.8,4797.3,6.0911]
[1756067399102,1.004,4797.9,4797.3,6.0911]
[1756067399908,2.7724,4798.0,4797.3,6.0911]
[1756067400303,2.7724,4798.0,4795.7,1.04281]
[1756067400304,3.2078,4797.7,4796.9,1.8197]
[1756067400502,1.004,4797.4,4796.8,3.2078]
[1756067400698,1.004,4797.2,4796.3,5.0275]
[1756067400899,3.2078,4797.1,4795.8,3.2078]
[1756067401206,3.2078,4796.6,4795.8,3.2078]
[1756067401400,3.7764,4796.4,4795.5,2.0766]
[1756067401606,24.189,4796.5,4795.8,1.0636]
[1756067401909,24.189,4796.5,4796.4,3.8963]
[1756067402106,33.2508,4797.4,4796.5,3.8963]
[1756067402309,1.7122,4797.6,4796.8,7.1041]
[1756067402512,2.7724,4797.6,4796.8,7.1041]
[1756067402707,3.2078,4797.0,4796.1,1.8197]
[1756067403006,3.2078,4796.3,4795.3,0.41715]
[1756067403311,24.171,4796.5,4796.1,3.2078]
[1756067403613,24.171,4796.5,4796.4,2.8833]
[1756067403812,24.171,4796.5,4796.4,3.8963]
[1756067404215,2.7724,4796.3,4795.7,2.8327]
[1756067404611,2.7724,4796.9,4796.2,1.013]
[1756067404802,1.004,4796.8,4796.0,2.8833]
[1756067405005,3.2078,4797.2,4796.7,3.2078]
[1756067405006,24.155,4797.2,4796.7,3.2078]
[1756067405205,25.8632,4797.4,4796.8,3.8963]
[1756067405514,2.7724,4797.3,4796.7,3.2078]
[1756067405711,3.2078,4796.9,4794.9,3.2078]
[1756067405906,1.541,4795.8,4795.0,3.2078]
[1756067406106,1.541,4795.7,4794.8,3.2078]
[1756067406313,24.141,4796.5,4795.1,1.8197]
[1756067406501,3.2078,4796.1,4795.2,1.0636]
[1756067406706,3.2078,4796.1,4795.3,1.8197]
[1756067407106,3.6052,4796.4,4795.2,1.0636]
[1756067407311,3.2078,4795.8,4795.2,1.0636]
[1756067407712,3.2078,4795.8,4795.1,1.8197]
[1756067407907,2.545,4795.4,4795.1,1.8197]
[1756067408110,3.2078,4795.8,4794.7,2.8833]
[1756067408308,3.2078,4796.3,4794.8,3.8963]
[1756067408608,3.2078,4796.3,4795.1,0.41717]
[1756067409111,1.19759372,4797.5,4797.3,0.41697]
[1756067409303,0.1,4800.2,4798.2,2.8327]
[1756067409304,1.541,4799.3,4798.2,2.8327]
[1756067409510,1.0602,4799.1,4798.2,2.8327]
[1756067409714,2.6012,4798.9,4797.9,3.2078]
[1756067409916,1.004,4798.5,4798.0,0.29302731]
[1756067410209,3.2078,4798.8,4798.1,0.29302731]
[1756067410410,1.0602,4798.1,4797.1,1.013]
[1756067410604,1.004,4797.8,4797.2,0.29296402]
[1756067410811,3.6052,4797.8,4797.3,0.29296402]
[1756067411113,3.2078,4797.9,4796.5,3.2078]
[1756067411308,3.2078,4797.3,4796.2,1.0636]
[1756067411509,3.6052,4797.1,4795.8,1.8197]
[1756067411708,24.11,4798.0,4795.8,1.8197]
[1756067411709,3.2078,4796.8,4795.8,1.8197]
[1756067412005,2.0642,4796.5,4795.8,1.8197]
[1756067412208,24.097,4796.4,4795.8,1.8197]
[1756067412917,2.0642,4796.5,4795.8,1.8197]
[1756067413104,24.088,4796.6,4796.0,1.8197]
[1756067413310,1.0602,4797.3,4796.4,3.8963]
[1756067413610,25.625,4797.7,4796.9,1.8197]
[1756067413809,24.084,4797.7,4797.4,3.8963]
[1756067414010,24.084,4797.7,4797.3,3.2078]
[1756067414205,24.084,4797.7,4797.6,3.8963]
[1756067414415,24.084,4797.7,4797.6,2.8327]
[1756067414612,1.0602,4797.3,4796.9,1.8197]
[1756067414812,1.0602,4797.2,4797.0,2.8327]
[1756067415008,1.0602,4797.2,4797.1,1.8197]
[1756067415312,1.0602,4797.2,4796.2,3.2078]
[1756067415313,2.0642,4797.1,4796.3,1.8197]
[1756067415509,3.2078,4797.3,4796.3,1.8197]
[1756067415714,3.2078,4797.3,4796.1,2.0766]
[1756067415715,2.6012,4797.0,4796.1,2.0766]
[1756067415915,2.0642,4796.8,4795.7,5.0275]
[1756067416104,24.067,4796.7,4795.8,3.8963]
[1756067416311,24.067,4796.7,4795.9,3.8963]
[1756067416613,25.1202,4797.4,4796.2,3.2078]
[1756067416910,25.1202,4797.4,4796.5,3.8963]
[1756067417216,1.0602,4798.2,4797.4,2.0766]
[1756067417411,1.0602,4798.2,4797.5,1.8197]
[1756067417609,1.004,4798.6,4797.6,2.0766]
[1756067417814,27.2568,4799.0,4797.8,3.2078]
[1756067418111,2.0642,4799.1,4798.3,1.8197]
[1756067418311,1.0602,4800.5,4799.3,1.0636]
[1756067418516,8.1555,4801.1,4800.1,0.41674]
[1756067418708,7.0953,4801.1,4800.3,1.8197]
[1756067418911,5.1223,4801.9,4801.0,3.2078]
[1756067419113,5.1223,4801.9,4799.4,2.73032013]
[1756067419114,5.1223,4801.9,4801.6,3.8963]
[1756067419315,5.1223,4801.9,4801.7,0.29668945]
[1756067419611,1.0602,4802.6,4801.9,1.8197]
[1756067419815,1.0602,4802.6,4802.0,0.29668945]
[1756067420116,24.033,4802.7,4802.1,0.29668945]
[1756067420414,24.033,4802.7,4801.3,1.8197]
[1756067420415,1.004,4802.2,4801.3,1.8197]
[1756067420610,1.004,4802.2,4801.4,0.29533933]
[1756067420811,28.2358,4802.2,4801.5,0.29533933]
[1756067421008,4.2118,4802.2,4801.6,0.29533933]
[1756067421311,3.2078,4802.2,4802.0,1.8197]
[1756067421507,30.035,4802.8,4801.7,2.8327]
[1756067421916,30.035,4802.8,4801.8,0.29492644]
[1756067422116,54.051,4802.8,4801.7,2.8327]
[1756067422316,24.012,4802.7,4802.0,3.2078]
[1756067422720,24.009,4802.7,4802.0,3.2078]
[1756067422918,1.541,4802.5,4801.5,3.2078]
[1756067423215,3.2078,4802.2,4800.8,2.8833]
[1756067423517,3.2078,4801.7,4800.8,2.8833]
[1756067423711,1.004,4801.5,4800.2,3.2078]
[1756067423912,3.6052,4801.1,4799.7,3.2078]
[1756067424111,2.545,4800.8,4799.8,0.29445394]
[1756067424318,5.809,4801.4,4800.0,4.31305]
[1756067424518,5.809,4801.4,4800.2,1.013]
[1756067424720,5.809,4801.4,4800.3,0.29444053]
[1756067424917,5.809,4801.4,4800.6,1.0636]
[1756067425119,2.545,4801.1,4800.0,1.8197]
[1756067425413,1.004,4800.5,4799.4,1.8197]
[1756067425614,2.545,4800.3,4799.5,1.30744599]
[1756067425819,1.004,4800.3,4799.6,1.35804599]
[1756067426020,23.976,4800.6,4799.8,1.013]
[1756067426211,3.2078,4801.4,4800.3,3.2078]
[1756067426412,3.2078,4801.4,4800.4,3.17777031]
[1756067426720,3.6052,4800.4,4799.5,2.0766]
[1756067427112,3.6052,4800.4,4799.5,1.0636]
[1756067427710,7.1026,4803.8,4799.6,2.8105]
[1756067427711,1.5371,4801.1,4799.6,2.8105]
[1756067428025,3.2078,4801.9,4800.8,3.2078]
[1756067428223,2.1215,4802.0,4801.4,2.8105]
[1756067428412,1.07,4802.3,4801.5,0.29441893]
[1756067428721,1.07,4802.3,4801.6,7.42311044]
[1756067428923,1.0515,4802.4,4801.7,0.29441044]
[1756067429119,1.0515,4802.4,4801.6,7.1287]
[1756067429824,1.0515,4802.6,4801.6,7.1287]
[1756067430023,1.0515,4802.6,4799.6,30.016]
[1756067430024,2.5886,4802.5,4801.1,3.2078]
[1756067430213,2.6071,4802.5,4801.4,1.52702]
[1756067430419,1.0515,4803.0,4801.7,3.9209]
[1756067430618,1.0515,4803.0,4802.1,3.2078]
[1756067430822,1.0515,4803.8,4802.1,3.2078]
[1756067431119,1.0515,4803.8,4802.8,3.2078]
[1756067431324,1.0515,4803.8,4802.9,3.9209]
[1756067431524,2.6071,4804.1,4803.0,2.8105]
[1756067431721,1.07,4804.1,4803.4,3.2078]
[1756067432021,1.07,4804.1,4803.1,3.9209]
[1756067432022,2.5796,4804.0,4803.1,3.9209]
[1756067432222,2.5796,4804.0,4802.8,3.2078]
[1756067432223,3.2078,4803.4,4802.5,1.832]
[1756067432418,1.0515,4803.3,4802.5,1.832]
[1756067433822,1.5281,4803.8,4802.7,3.2078]
[1756067434019,2.1215,4803.7,4802.8,1.832]
[1756067434215,3.2078,4803.6,4802.2,1.832]
[1756067434419,2.1215,4803.4,4802.2,1.832]
[1756067434623,1.0515,4803.4,4802.2,1.832]
[1756067435425,1.0515,4803.4,4802.0,2.0889]
[1756067435426,24.9505,4803.4,4802.4,1.832]
[1756067435625,1.07,4803.5,4802.6,2.8105]
[1756067436423,1.0515,4803.4,4802.6,2.8105]
[1756067436624,1.532,4803.3,4802.6,2.8105]
[1756067436821,25.414,4803.3,4802.6,2.8105]
[1756067437023,2.1215,4803.2,4802.6,1.832]
[1756067437624,2.602,4802.7,4802.0,0.9785]
[1756067437825,2.602,4802.5,4801.8,3.2078]
[1756067438125,2.602,4802.5,4801.2,1.1104]
[1756067438126,3.2078,4802.3,4800.5,5.2967]
[1756067438331,3.6535,4801.5,4800.5,2.0889]
[1756067438627,2.1215,4801.3,4800.4,1.832]
[1756067438925,4.2593,4801.2,4800.4,1.832]
[1756067439130,4.2593,4801.2,4800.0,3.2078]
[1756067439131,2.1215,4800.9,4800.0,3.2078]
[1756067439332,2.1215,4800.9,4800.1,0.30060623]
[1756067439623,2.602,4800.6,4799.9,1.1104]
[1756067439830,3.6535,4800.6,4800.0,0.30061594]
[1756067440018,3.6535,4800.6,4799.7,1.832]
[1756067440218,3.6535,4800.6,4799.8,0.30061691]
[1756067440519,3.6535,4800.6,4799.7,1.832]
[1756067440923,3.2078,4800.2,4799.3,3.2078]
[1756067441218,1.532,4799.5,4798.8,3.2078]
[1756067441430,3.2078,4799.6,4798.9,0.30090119]
[1756067441624,23.844,4799.5,4798.8,3.2078]
[1756067441932,3.6535,4799.0,4798.9,0.30090125]
[1756067442331,3.6535,4799.0,4798.2,1.1104]
[1756067442628,3.6535,4799.0,4798.3,0.30119755]
[1756067442826,2.1215,4798.3,4797.5,2.8105]
[1756067443032,2.1215,4798.2,4797.6,0.30121955]
[1756067443227,3.2078,4798.4,4797.3,3.2078]
[1756067443424,3.2078,4799.0,4798.2,2.2489]
[1756067443624,3.2078,4799.0,4798.4,2.9424]
[1756067443824,3.2078,4799.0,4798.5,0.29447205]
[1756067444029,3.2078,4799.0,4798.6,0.29447205]
[1756067444225,3.2078,4799.0,4798.9,3.9209]
[1756067444526,3.2078,4800.6,4799.3,0.4168]
[1756067444724,3.2078,4800.6,4799.7,1.832]
[1756067444927,23.823,4801.1,4800.2,2.9424]
[1756067445122,23.823,4801.1,4800.3,0.2944811]
[1756067445326,2.1215,4800.6,4799.5,0.9785]
[1756067445625,2.1215,4800.6,4799.6,0.29469155]
[1756067445819,23.816,4800.8,4799.9,0.9785]
[1756067446032,23.816,4800.8,4800.0,0.29469155]
[1756067446329,3.6535,4800.7,4800.1,0.29469155]
[1756067446529,3.6535,4800.7,4798.9,3.2078]
[1756067446530,1.532,4800.1,4798.4,0.16441838]
[1756067446724,3.2078,4798.5,4797.4,3.2078]
[1756067446926,3.5455,4797.9,4797.4,3.2078]
[1756067447226,3.2078,4798.0,4797.4,3.2078]
[1756067447227,3.5455,4797.8,4797.4,3.2078]
[1756067447422,4.0,4798.0,4797.4,3.2078]
[1756067447735,3.5455,4798.3,4797.5,1.832]
[1756067448434,23.799,4798.7,4797.9,1.832]
[1756067448729,0.9435,4798.3,4797.4,3.2078]
[1756067449035,3.5455,4797.5,4797.4,3.2078]
[1756067449235,2.602,4798.1,4797.4,3.2078]
[1756067449535,23.797,4798.2,4797.6,0.41695]
[1756067449830,23.797,4798.2,4798.0,3.9209]
[1756067450233,0.9435,4798.0,4797.9,3.2078]
[1756067450429,3.5455,4798.0,4797.9,3.2078]
[1756067450626,3.5455,4798.0,4797.4,3.2078]
[1756067451023,23.783,4797.9,4797.4,3.2078]
[1756067451331,3.5455,4797.8,4797.4,3.2078]
[1756067451633,2.602,4797.6,4797.4,3.2078]
[1756067451830,2.4755,4798.1,4797.4,3.2078]
[1756067452035,23.776,4798.0,4797.4,3.2078]
[1756067452533,23.776,4797.9,4797.6,3.9209]